[Event "IV Zagreb Open 2019"]
[Site "Zagreb"]
[Date "2019.12.14"]
[Round "9.4"]
[White "Kovacevic, Blazimir"]
[Black "Plenca, Jadranko"]
[Result "1/2-1/2"]
[ECO "A14"]
[WhiteElo "2453"]
[BlackElo "2453"]
[Annotator "ChessBase"]
[PlyCount "68"]
[EventDate "2019.12.07"]
[EventType "swiss"]
[EventCountry "CRO"]
[SourceTitle "playchess.com"]
[Source "ChessBase"]
[SourceQuality "1"]
[TimeControl "40/5400+30:1800+30"]

1. c4 {[%emt 0:00:00]} e6 {[%emt 0:03:41]} 2. g3 {[%emt 0:00:00]} d5 {[%emt 0:00:12]} 3. Bg2 {[%emt 0:00:08]} Nf6 {[%emt 0:00:12]} 4. Nf3 {[%emt 0:00:18]} Be7 {[%emt 0:00:27]} 5. O-O {[%emt 0:00:39]} O-O {[%emt 0:00:10]} 6. b3 {[%emt 0:00:20]} c6 {[%emt 0:01:57]} 7. Bb2 {[%emt 0:01:05]} b6 {[%emt 0:00:24]} 8. e3 {[%emt 0:07:03]} Nbd7 {[%emt 0:01:21]} 9. Qe2 {[%emt 0:00:27]} a5 {[%emt 0:02:23]} 10. Nc3 {[%emt 0:15:07]} Ba6 {[%emt 0:00:28]} 11. d3 {[%emt 0:05:29]} b5 {[%emt 0:01:26]} 12. Rfd1 {[%emt 0:19:13]} a4 {[%emt 0:12:12]} 13. Rab1 {[%emt 0:09:30]} Qa5 {[%emt 0:05:27]} 14. e4 {[%emt 0:10:58]} bxc4 {[%emt 0:09:47]} 15. bxc4 {[%emt 0:03:10]} dxc4 {[%emt 0:04:52]} 16. d4 {[%emt 0:00:21]} Rab8 {[%emt 0:09:01]} 17. Qc2 {[%emt 0:00:20]} a3 {[%emt 0:07:02]} 18. Ba1 {[%emt 0:00:04]} h6 {[%emt 0:02:45]} 19. Bf1 {[%emt 0:01:25]} Rfd8 {[%emt 0:02:30]} 20. Rxb8 {[%emt 0:01:41]} Rxb8 {[%emt 0:00:11]} 21. Rb1 {[%emt 0:00:11]} Rxb1 {[%emt 0:02:52]} 22. Nxb1 {[%emt 0:01:04]} c5 {[%emt 0:06:40]} 23. Nbd2 {[%emt 0:01:47]} cxd4 {[%emt 0:01:31]} 24. Bxd4 {[%emt 0:02:01]} Qc7 {[%emt 0:04:30]} 25. Bxc4 {[%emt 0:04:38]} Bxc4 {[%emt 0:01:19]} 26. Bxf6 {[%emt 0:06:22]} Nxf6 {[%emt 0:01:13]} 27. Nxc4 {[%emt 0:00:43]} Qb7 {[%emt 0:05:24]} 28. Nfd2 {[%emt 0:00:44]} Bc5 {[%emt 0:01:01]} 29. h3 {[%emt 0:05:29]} h5 {[%emt 0:04:49]} 30. Qd3 {[%emt 0:01:06]} g6 {[%emt 0:05:07]} 31. Nb3 {[%emt 0:02:24]} Ba7 {[%emt 0:01:36]} 32. Nbd2 {[%emt 0:00:14]} Bc5 {[%emt 0:00:04]} 33. Nb3 {[%emt 0:00:02]} Ba7 {[%emt 0:00:03]} 34. Nbd2 {[%emt 0:00:03]} Bc5 {[%emt 0:00:04]} 1/2-1/2

[Event "IV Zagreb Open 2019"]
[Site "Zagreb"]
[Date "2019.12.14"]
[Round "9.6"]
[White "Stany, G.A."]
[Black "Jurkovic, Ante"]
[Result "1-0"]
[ECO "C09"]
[WhiteElo "2526"]
[BlackElo "2274"]
[Annotator "ChessBase"]
[PlyCount "75"]
[EventDate "2019.12.07"]
[EventType "swiss"]
[EventCountry "CRO"]
[SourceTitle "playchess.com"]
[Source "ChessBase"]
[SourceQuality "1"]
[TimeControl "40/5400+30:1800+30"]

1. e4 {[%emt 0:00:00]} e6 {[%emt 0:01:50]} 2. d4 {[%emt 0:00:00]} d5 {[%emt 0:00:12]} 3. Nd2 {[%emt 0:00:00]} c5 {[%emt 0:00:30]} 4. exd5 {[%emt 0:00:31]} exd5 {[%emt 0:00:28]} 5. Ngf3 {[%emt 0:00:47]} Nc6 {[%emt 0:00:33]} 6. Bb5 {[%emt 0:00:11]} Bd6 {[%emt 0:03:45]} 7. dxc5 {[%emt 0:01:19]} Bxc5 {[%emt 0:00:09]} 8. O-O {[%emt 0:00:05]} Nge7 {[%emt 0:00:19]} 9. Nb3 {[%emt 0:02:03]} Bd6 {[%emt 0:00:26]} 10. h3 {[%emt 0:00:45]} O-O {[%emt 0:00:25]} 11. Re1 {[%emt 0:00:11]} Nf5 {[%emt 0:05:47]} 12. c3 {[%emt 0:15:25]} h6 {[%emt 0:08:54]} 13. Ba4 {[%emt 0:13:25]} Bc7 {[%emt 0:12:37]} 14. Nc5 {[%emt 0:04:01]} d4 {[%emt 0:08:36]} 15. Bxc6 {[%emt 0:12:53]} bxc6 {[%emt 0:00:19]} 16. cxd4 {[%emt 0:00:04]} Qd5 {[%emt 0:05:15]} 17. b3 {[%emt 0:01:10]} Rd8 {[%emt 0:02:14]} 18. Bb2 {[%emt 0:00:23]} Bf4 {[%emt 0:08:25]} 19. Re4 {[%emt 0:09:35]} Bd6 {[%emt 0:00:28]} 20. Qe2 {[%emt 0:04:53]} Bxc5 {[%emt 0:06:04]} 21. Re5 {[%emt 0:00:34]} Qd6 {[%emt 0:04:01]} 22. dxc5 {[%emt 0:00:12]} Qd3 {[%emt 0:01:52]} 23. g4 {[%emt 0:02:25]} f6 {[%emt 0:03:09]} 24. Re8+ {[%emt 0:00:40]} Kf7 {[%emt 0:00:25]} 25. gxf5 {[%emt 0:00:08]} Qxe2 {[%emt 0:05:38]} 26. Rxe2 {[%emt 0:00:07]} Bxf5 {[%emt 0:00:10]} 27. Kg2 {[%emt 0:08:43]} Rd5 {[%emt 0:03:14]} 28. Rae1 {[%emt 0:02:02]} Kf8 {[%emt 0:02:04]} 29. Nd4 {[%emt 0:02:09]} Bd7 {[%emt 0:00:12]} 30. h4 {[%emt 0:01:15]} Rb8 {[%emt 0:03:20]} 31. Ne6+ {[%emt 0:04:13]} Kg8 {[%emt 0:01:49]} 32. Nc7 {[%emt 0:00:10]} Rd3 {[%emt 0:02:21]} 33. Ba3 {[%emt 0:06:57]} Rd4 {[%emt 0:02:36]} 34. Re7 {[%emt 0:01:51]} Rd2 {[%emt 0:04:56]} 35. Bc1 {[%emt 0:01:03]} Rd3 {[%emt 0:00:34]} 36. Ne6 {[%emt 0:00:29]} g5 {[%emt 0:02:27]} 37. hxg5 {[%emt 0:00:23]} hxg5 {[%emt 0:00:14]} 38. Rg7+ {[%emt 0:00:06]} 1-0

[Event "IV Zagreb Open 2019"]
[Site "Zagreb"]
[Date "2019.12.14"]
[Round "9.7"]
[White "Dinev, Dejan"]
[Black "Cvitan, Ognjen"]
[Result "1/2-1/2"]
[ECO "D02"]
[WhiteElo "2223"]
[BlackElo "2488"]
[Annotator "ChessBase"]
[PlyCount "28"]
[EventDate "2019.12.07"]
[EventType "swiss"]
[EventCountry "CRO"]
[SourceTitle "playchess.com"]
[Source "ChessBase"]
[SourceQuality "1"]
[TimeControl "40/5400+30:1800+30"]

1. d4 {[%emt 0:00:16]} Nf6 {[%emt 0:02:14]} 2. Nf3 {[%emt 0:00:19]} e6 {[%emt 0:04:23]} 3. g3 {[%emt 0:00:10]} c5 {[%emt 0:01:26]} 4. Bg2 {[%emt 0:00:08]} cxd4 {[%emt 0:02:26]} 5. Nxd4 {[%emt 0:00:11]} d5 {[%emt 0:00:06]} 6. O-O {[%emt 0:00:44]} e5 {[%emt 0:00:49]} 7. Nb3 {[%emt 0:02:02]} Be6 {[%emt 0:00:15]} 8. c4 {[%emt 0:01:51]} Nc6 {[%emt 0:00:58]} 9. cxd5 {[%emt 0:00:21]} Nxd5 {[%emt 0:00:45]} 10. Nc3 {[%emt 0:00:57]} Nxc3 {[%emt 0:03:01]} 11. bxc3 {[%emt 0:00:02]} Be7 {[%emt 0:03:27]} 12. Be3 {[%emt 0:00:20]} O-O {[%emt 0:02:45]} 13. Nc5 {[%emt 0:00:44]} Bxc5 {[%emt 0:02:42]} 14. Bxc5 {[%emt 0:00:03]} Qxd1 {[%emt 0:00:44]} 1/2-1/2

[Event "IV Zagreb Open 2019"]
[Site "Zagreb"]
[Date "2019.12.14"]
[Round "9.8"]
[White "Strikovic, Aleksa"]
[Black "Liu, Zhaoqi"]
[Result "1-0"]
[ECO "B38"]
[WhiteElo "2468"]
[BlackElo "2380"]
[Annotator "RC"]
[PlyCount "69"]
[EventDate "2019.12.07"]
[EventType "swiss"]
[EventCountry "CRO"]
[SourceTitle "playchess.com"]
[Source "ChessBase"]
[SourceQuality "1"]
[TimeControl "40/5400+30:1800+30"]

1. c4 {[%emt 0:00:00]} c5 {[%emt 0:17:52]} 2. Nf3 {[%emt 0:00:00]} Nf6 {[%emt 0:00:09]} 3. Nc3 {[%emt 0:00:25]} g6 {[%emt 0:00:14]} 4. d4 {[%emt 0:00:04]} cxd4 {[%emt 0:00:05]} 5. Nxd4 {[%emt 0:00:05]} Bg7 {[%emt 0:00:04]} 6. e4 {[%emt 0:00:07]} O-O {[%emt 0:00:03]} 7. Be2 {[%emt 0:00:05]} d6 {[%emt 0:00:02]} 8. O-O {[%emt 0:00:08]} Nc6 {[%emt 0:00:02]} 9. Be3 {[%emt 0:00:06]} Bd7 {[%emt 0:00:19]} 10. h3 {[%emt 0:00:06]} Nxd4 {[%emt 0:00:23]} 11. Bxd4 {[%emt 0:00:05]} Bc6 {[%emt 0:00:04]} 12. Qc2 {[%emt 0:00:05]} a5 {[%emt 0:03:35]} 13. Rad1 {[%emt 0:00:05]} Nd7 {[%emt 0:01:22]} 14. Bxg7 {[%emt 0:00:11]} Kxg7 {[%emt 0:00:03]} 15. Bg4 {[%emt 0:00:05]} Ne5 {[%emt 0:02:34]} 16. c5 {[%emt 0:00:06]} Nxg4 {[%emt 0:05:21]} 17. hxg4 {[%emt 0:00:02]} Qd7 {[%emt 0:09:10]} 18. f3 {[%emt 0:01:25]} b5 {[%emt 0:08:45]} 19. cxd6 {[%emt 0:04:17]} exd6 {[%emt 0:00:06]} 20. Qf2 {[%emt 0:19:58]} Rfd8 {[%emt 0:04:54]} 21. Rd2 {[%emt 0:08:59]} Qa7 {[%emt 0:27:02]} 22. Rfd1 {[%emt 0:00:32]} b4 {[%emt 0:00:06]} 23. Ne2 {[%emt 0:01:41]} Ba4 {[%emt 0:02:13]} 24. b3 {[%emt 0:00:06]} Bb5 {[%emt 0:00:14]} 25. Nf4 {[%emt 0:00:13]} Qxf2+ {[%emt 0:04:20]} 26. Kxf2 {[%emt 0:00:02]} a4 {[%emt 0:00:04]} 27. Rd4 {[%emt 0:00:15]} axb3 {[%emt 0:00:13]} 28. axb3 {[%emt 0:00:02]} Ra2+ {[%emt 0:01:18]} 29. Kg3 {[%emt 0:00:06]} h5 {[%emt 0:03:38]} 30. gxh5 {[%emt 0:01:08]} gxh5 {[%emt 0:00:44]} 31. Rxb4 {[%emt 0:00:09]} Be2 {[%emt 0:00:31]} 32. Rd5 {[%emt 0:01:07]} h4+ {[%emt 0:01:09]} 33. Kxh4 {[%emt 0:00:05]} Bf1 {[%emt 0:00:09]} 34. Kg3 {[%emt 0:00:17]} Kf6 {[%emt 0:00:26]} 35. Rf5+ {[%emt 0:00:14]} 1-0

[Event "IV Zagreb Open 2019"]
[Site "Zagreb"]
[Date "2019.12.14"]
[Round "9.9"]
[White "Nguyen, Piotr"]
[Black "Matanovic, Luka"]
[Result "1-0"]
[ECO "D94"]
[WhiteElo "2413"]
[BlackElo "2280"]
[Annotator "NA"]
[PlyCount "41"]
[EventDate "2019.12.07"]
[EventType "swiss"]
[EventCountry "CRO"]
[SourceTitle "playchess.com"]
[Source "ChessBase"]
[SourceQuality "1"]
[TimeControl "40/5400+30:1800+30"]

1. c4 {[%emt 0:00:00]} c6 {[%emt 0:00:00]} 2. Nf3 {[%emt 0:00:00]} d5 {[%emt 0:00:00]} 3. e3 {[%emt 0:00:07]} g6 {[%emt 0:01:50]} 4. d4 {[%emt 0:01:00]} Bg7 {[%emt 0:00:41]} 5. Be2 {[%emt 0:02:33]} Nf6 {[%emt 0:02:18]} 6. O-O {[%emt 0:00:09]} O-O {[%emt 0:01:07]} 7. Nc3 {[%emt 0:01:13]} a6 {[%emt 0:03:45]} 8. Ne5 {[%emt 0:06:29]} b5 {[%emt 0:03:48]} 9. cxd5 {[%emt 0:00:17]} cxd5 {[%emt 0:02:00]} 10. b4 {[%emt 0:09:54]} Qd6 {[%emt 0:12:41]} 11. a4 {[%emt 0:07:15]} bxa4 {[%emt 0:09:22]} 12. Qxa4 {[%emt 0:06:19]} Nfd7 {[%emt 0:02:05]} 13. Nxd7 {[%emt 0:02:59]} Nxd7 {[%emt 0:03:39]} 14. b5 {[%emt 0:13:02]} Nb6 {[%emt 0:07:16]} 15. Qa3 {[%emt 0:04:31]} Qc7 {[%emt 0:13:11]} 16. bxa6 {[%emt 0:00:51]} e5 {[%emt 0:01:29]} 17. Qc5 {[%emt 0:05:24]} Qxc5 {[%emt 0:12:49]} 18. dxc5 {[%emt 0:00:04]} e4 {[%emt 0:02:02]} 19. cxb6 {[%emt 0:00:28]} Bxc3 {[%emt 0:00:17]} 20. Ra3 {[%emt 0:00:51]} Bb4 {[%emt 0:00:22]} 21. Rb3 {[%emt 0:01:04]} 1-0

[Event "IV Zagreb Open 2019"]
[Site "Zagreb"]
[Date "2019.12.14"]
[Round "9.10"]
[White "Safar, Sandro"]
[Black "Drnovsek, Gal"]
[Result "1-0"]
[ECO "D00"]
[WhiteElo "2210"]
[BlackElo "2388"]
[Annotator "NA"]
[PlyCount "83"]
[EventDate "2019.12.07"]
[EventType "swiss"]
[EventCountry "CRO"]
[SourceTitle "playchess.com"]
[Source "ChessBase"]
[SourceQuality "1"]
[TimeControl "40/5400+30:1800+30"]

1. d4 {[%emt 0:00:00]} Nf6 {[%emt 0:00:00]} 2. Nc3 {[%emt 0:00:00]} d5 {[%emt 0:00:00]} 3. Bf4 {[%emt 0:00:00]} e6 {[%emt 0:00:43]} 4. Nb5 {[%emt 0:00:00]} Na6 {[%emt 0:01:30]} 5. a3 {[%emt 0:00:23]} c6 {[%emt 0:01:19]} 6. Nc3 {[%emt 0:00:07]} Nb8 {[%emt 0:02:44]} 7. e3 {[%emt 0:00:20]} Bd6 {[%emt 0:01:06]} 8. Nf3 {[%emt 0:00:16]} O-O {[%emt 0:01:32]} 9. Ne5 {[%emt 0:01:00]} Qc7 {[%emt 0:02:14]} 10. Bg3 {[%emt 0:02:25]} Nbd7 {[%emt 0:04:07]} 11. f4 {[%emt 0:00:11]} a6 {[%emt 0:01:38]} 12. Bd3 {[%emt 0:05:09]} c5 {[%emt 0:00:07]} 13. Bf2 {[%emt 0:01:35]} b5 {[%emt 0:02:50]} 14. g4 {[%emt 0:09:56]} c4 {[%emt 0:08:37]} 15. Nxd7 {[%emt 0:07:16]} Bxd7 {[%emt 0:03:19]} 16. g5 {[%emt 0:03:01]} cxd3 {[%emt 0:07:23]} 17. gxf6 {[%emt 0:00:20]} gxf6 {[%emt 0:01:12]} 18. Qh5 {[%emt 0:08:05]} Be7 {[%emt 0:10:39]} 19. Qh6 {[%emt 0:02:04]} Kh8 {[%emt 0:00:39]} 20. Bh4 {[%emt 0:00:07]} Qd8 {[%emt 0:01:38]} 21. Rg1 {[%emt 0:01:26]} Rg8 {[%emt 0:00:05]} 22. Rxg8+ {[%emt 0:00:19]} Qxg8 {[%emt 0:00:07]} 23. Bxf6+ {[%emt 0:00:07]} Bxf6 {[%emt 0:00:04]} 24. Qxf6+ {[%emt 0:00:05]} Qg7 {[%emt 0:00:04]} 25. Qxg7+ {[%emt 0:00:05]} Kxg7 {[%emt 0:00:06]} 26. cxd3 {[%emt 0:00:08]} Kf6 {[%emt 0:00:39]} 27. Kf2 {[%emt 0:00:24]} a5 {[%emt 0:00:27]} 28. Ne2 {[%emt 0:05:22]} Ke7 {[%emt 0:01:45]} 29. e4 {[%emt 0:02:30]} f6 {[%emt 0:01:29]} 30. b3 {[%emt 0:02:46]} Be8 {[%emt 0:02:19]} 31. Rc1 {[%emt 0:01:34]} b4 {[%emt 0:04:26]} 32. a4 {[%emt 0:00:07]} f5 {[%emt 0:03:03]} 33. Ng3 {[%emt 0:07:27]} Bg6 {[%emt 0:02:24]} 34. exd5 {[%emt 0:02:28]} exd5 {[%emt 0:00:06]} 35. h4 {[%emt 0:00:15]} Ke6 {[%emt 0:01:46]} 36. Rc6+ {[%emt 0:02:30]} Kd7 {[%emt 0:00:38]} 37. Rc5 {[%emt 0:00:19]} Ke6 {[%emt 0:00:37]} 38. Nf1 {[%emt 0:00:26]} Kd6 {[%emt 0:05:40]} 39. Ne3 {[%emt 0:00:09]} Bf7 {[%emt 0:00:15]} 40. Nxf5+ {[%emt 0:00:00]} Ke6 {[%emt 0:00:00]} 41. Ne3 {[%emt 0:00:46]} Kd6 {[%emt 0:00:12]} 42. f5 {[%emt 0:01:25]} 1-0

[Event "IV Zagreb Open 2019"]
[Site "Zagreb"]
[Date "2019.12.14"]
[Round "9.11"]
[White "Janzelj, Tim"]
[Black "Selendic, Ivan"]
[Result "1-0"]
[ECO "C98"]
[WhiteElo "2446"]
[BlackElo "2192"]
[Annotator "NA"]
[PlyCount "89"]
[EventDate "2019.12.07"]
[EventType "swiss"]
[EventCountry "CRO"]
[SourceTitle "playchess.com"]
[Source "ChessBase"]
[SourceQuality "1"]
[TimeControl "40/5400+30:1800+30"]

1. e4 {[%emt 0:00:00]} e5 {[%emt 0:00:00]} 2. Nf3 {[%emt 0:00:00]} Nc6 {[%emt 0:00:00]} 3. Bb5 {[%emt 0:00:00]} a6 {[%emt 0:00:39]} 4. Ba4 {[%emt 0:00:01]} Nf6 {[%emt 0:03:01]} 5. O-O {[%emt 0:00:31]} Be7 {[%emt 0:02:31]} 6. Re1 {[%emt 0:00:30]} b5 {[%emt 0:00:54]} 7. Bb3 {[%emt 0:00:11]} d6 {[%emt 0:00:40]} 8. c3 {[%emt 0:00:59]} O-O {[%emt 0:01:15]} 9. h3 {[%emt 0:00:18]} Na5 {[%emt 0:00:41]} 10. Bc2 {[%emt 0:00:12]} c5 {[%emt 0:00:24]} 11. d4 {[%emt 0:00:40]} Qc7 {[%emt 0:01:26]} 12. Nbd2 {[%emt 0:01:33]} Bb7 {[%emt 0:01:18]} 13. d5 {[%emt 0:03:27]} Bc8 {[%emt 0:00:07]} 14. b3 {[%emt 0:03:06]} Ne8 {[%emt 0:04:14]} 15. Nf1 {[%emt 0:01:05]} f5 {[%emt 0:02:03]} 16. exf5 {[%emt 0:01:09]} Bxf5 {[%emt 0:00:08]} 17. Bxf5 {[%emt 0:04:10]} Rxf5 {[%emt 0:00:05]} 18. c4 {[%emt 0:05:10]} g6 {[%emt 0:13:06]} 19. Ng3 {[%emt 0:01:15]} Rf7 {[%emt 0:01:07]} 20. Qd3 {[%emt 0:11:25]} Qd7 {[%emt 0:08:29]} 21. Bh6 {[%emt 0:05:53]} Ng7 {[%emt 0:03:18]} 22. Bxg7 {[%emt 0:00:13]} Kxg7 {[%emt 0:00:14]} 23. Ne4 {[%emt 0:05:32]} h6 {[%emt 0:14:51]} 24. Rad1 {[%emt 0:08:00]} Rc8 {[%emt 0:09:44]} 25. Qc3 {[%emt 0:04:12]} Nb7 {[%emt 0:01:55]} 26. a3 {[%emt 0:09:42]} Bd8 {[%emt 0:03:51]} 27. Qe3 {[%emt 0:04:48]} Rf4 {[%emt 0:03:46]} 28. g3 {[%emt 0:00:41]} Rf7 {[%emt 0:00:25]} 29. Kg2 {[%emt 0:00:27]} Ba5 {[%emt 0:00:35]} 30. Rf1 {[%emt 0:00:23]} Rcf8 {[%emt 0:00:30]} 31. Nh2 {[%emt 0:00:15]} Bd8 {[%emt 0:01:53]} 32. cxb5 {[%emt 0:02:55]} axb5 {[%emt 0:00:14]} 33. b4 {[%emt 0:00:36]} Bb6 {[%emt 0:01:07]} 34. Ng4 {[%emt 0:00:24]} g5 {[%emt 0:01:48]} 35. Nxh6 {[%emt 0:09:30]} Kxh6 {[%emt 0:00:12]} 36. Nxg5 {[%emt 0:00:08]} Kg6 {[%emt 0:00:44]} 37. Ne6 {[%emt 0:04:07]} Rh8 {[%emt 0:04:57]} 38. Qe4+ {[%emt 0:00:37]} Kf6 {[%emt 0:01:01]} 39. f4 {[%emt 0:00:02]} Ke7 {[%emt 0:00:16]} 40. fxe5 {[%emt 0:00:00]} Nd8 {[%emt 0:00:00]} 41. Qg4 {[%emt 0:33:03]} cxb4 {[%emt 0:29:47]} 42. exd6+ {[%emt 0:09:25]} Qxd6 {[%emt 0:00:55]} 43. Rfe1 {[%emt 0:03:01]} Rf2+ {[%emt 0:01:45]} 44. Kh1 {[%emt 0:00:00]} Nf7 {[%emt 0:05:03]} 45. Nc5+ {[%emt 0:00:41]} 1-0